[Event "Titled Tuesday Blitz December 20 Late 2022"]
[White "Bryakin, Mikhail"]
[Black "Tari, Aryan"]
[WhiteFideId "4165314"]
[BlackFideId "1510045"]
[WhiteElo "2391"]
[BlackElo "2620"]
[Result "0-1"]
[Round "07"]
[TimeControl "180+1"]
[Date "2022.12.20"]
[WhiteClock "0:00:08"]
[BlackClock "0:00:07"]

1. d4 {[%clk 0:02:58]}  Nf6 {[%clk 0:02:56]} 2. c4 {[%clk 0:02:59]}  e6 {[%clk 0:02:57]} 3. Nf3 {[%clk 0:02:59]}  d5 {[%clk 0:02:57]} 4. g3 {[%clk 0:02:59]}  h6 {[%clk 0:02:36]} 5. Bg2 {[%clk 0:02:52]}  Bd6 {[%clk 0:02:36]} 6. O-O {[%clk 0:02:51]}  O-O {[%clk 0:02:36]} 7. c5 {[%clk 0:02:43]}  Be7 {[%clk 0:02:34]} 8. b4 {[%clk 0:02:42]}  b6 {[%clk 0:02:08]} 9. Nc3 {[%clk 0:02:41]}  a5 {[%clk 0:02:07]} 10. cxb6 {[%clk 0:02:32]}  axb4 {[%clk 0:02:01]} 11. bxc7 {[%clk 0:02:32]}  Qxc7 {[%clk 0:02:02]} 12. Nb1 {[%clk 0:02:15]}  Nbd7 {[%clk 0:02:02]} 13. Bb2 {[%clk 0:02:12]}  Nb6 {[%clk 0:01:57]} 14. Nbd2 {[%clk 0:02:12]}  Na4 {[%clk 0:01:57]} 15. Qb3 {[%clk 0:02:10]}  Nc3 {[%clk 0:01:50]} 16. Bxc3 {[%clk 0:02:02]}  bxc3 {[%clk 0:01:47]} 17. Rfc1 {[%clk 0:02:00]}  Ra3 {[%clk 0:01:47]} 18. Qc2 {[%clk 0:01:55]}  Bb4 {[%clk 0:00:59]} 19. Nb1 {[%clk 0:01:53]}  Ra6 {[%clk 0:01:00]} 20. Ne5 {[%clk 0:01:30]}  Bd7 {[%clk 0:00:45]} 21. a3 {[%clk 0:01:11]}  Rc8 {[%clk 0:00:37]} 22. Qb3 {[%clk 0:00:59]}  Ba5 {[%clk 0:00:31]} 23. Qc2 {[%clk 0:00:49]}  Be8 {[%clk 0:00:22]} 24. Nd3 {[%clk 0:00:48]}  Bb6 {[%clk 0:00:20]} 25. Nb4 {[%clk 0:00:47]}  Raa8 {[%clk 0:00:18]} 26. e3 {[%clk 0:00:40]}  Ba4 {[%clk 0:00:18]} 27. Qxc3 {[%clk 0:00:38]}  Qd7 {[%clk 0:00:15]} 28. Qd2 {[%clk 0:00:38]}  Ne4 {[%clk 0:00:11]} 29. Qe1 {[%clk 0:00:32]}  Rxc1 {[%clk 0:00:09]} 30. Qxc1 {[%clk 0:00:33]}  Rc8 {[%clk 0:00:09]} 31. Qe1 {[%clk 0:00:34]}  f5 {[%clk 0:00:03]} 32. Nd2 {[%clk 0:00:34]}  Nc3 {[%clk 0:00:03]} 33. Nf3 {[%clk 0:00:35]}  Qc7 {[%clk 0:00:03]} 34. Ne5 {[%clk 0:00:35]}  Ba5 {[%clk 0:00:04]} 35. Bf1 {[%clk 0:00:35]}  Be8 {[%clk 0:00:03]} 36. Kg2 {[%clk 0:00:34]}  Ne4 {[%clk 0:00:03]} 37. h4 {[%clk 0:00:28]}  Qc3 {[%clk 0:00:03]} 38. Qxc3 {[%clk 0:00:28]}  Rxc3 {[%clk 0:00:04]} 39. Ra2 {[%clk 0:00:26]}  g5 {[%clk 0:00:04]} 40. hxg5 {[%clk 0:00:26]}  hxg5 {[%clk 0:00:05]} 41. Bd3 {[%clk 0:00:24]}  g4 {[%clk 0:00:04]} 42. Be2 {[%clk 0:00:16]}  Ba4 {[%clk 0:00:04]} 43. Ng6 {[%clk 0:00:14]}  Rc1 {[%clk 0:00:04]} 44. Nd3 {[%clk 0:00:13]}  Rb1 {[%clk 0:00:02]} 45. Ndf4 {[%clk 0:00:14]}  Nc3 {[%clk 0:00:02]} 46. Rd2 {[%clk 0:00:13]}  Kf7 {[%clk 0:00:02]} 47. Ne5+ {[%clk 0:00:13]}  Kf6 {[%clk 0:00:03]} 48. Bd3 {[%clk 0:00:12]}  Ra1 {[%clk 0:00:02]} 49. Rb2 {[%clk 0:00:12]}  Rxa3 {[%clk 0:00:02]} 50. Rb7 {[%clk 0:00:13]}  Be8 {[%clk 0:00:01]} 51. Nd7+ {[%clk 0:00:12]}  Bxd7 {[%clk 0:00:01]} 52. Rxd7 {[%clk 0:00:13]}  Ne4 {[%clk 0:00:02]} 53. Bxe4 {[%clk 0:00:13]}  fxe4 {[%clk 0:00:02]} 54. Rd6 {[%clk 0:00:14]}  Ra2 {[%clk 0:00:02]} 55. Rxe6+ {[%clk 0:00:14]}  Kf7 {[%clk 0:00:03]} 56. Re5 {[%clk 0:00:13]}  Be1 {[%clk 0:00:03]} 57. Rf5+ {[%clk 0:00:13]}  Kg7 {[%clk 0:00:04]} 58. Nxd5 {[%clk 0:00:13]}  Kg6 {[%clk 0:00:04]} 59. Ne7+ {[%clk 0:00:14]}  Kh6 {[%clk 0:00:04]} 60. Rf4 {[%clk 0:00:14]}  Kg5 {[%clk 0:00:04]} 61. Rf5+ {[%clk 0:00:12]}  Kh6 {[%clk 0:00:04]} 62. Rf8 {[%clk 0:00:11]}  Bd2 {[%clk 0:00:03]} 63. Rf7 {[%clk 0:00:09]}  Bxe3 {[%clk 0:00:03]} 64. Rf6+ {[%clk 0:00:07]}  Kg7 {[%clk 0:00:02]} 65. Rf5 {[%clk 0:00:06]}  Bxd4 {[%clk 0:00:02]} 66. Nd5 {[%clk 0:00:06]}  e3 {[%clk 0:00:02]} 67. Nxe3 {[%clk 0:00:03]}  Bxe3 {[%clk 0:00:02]} 68. Kf1 {[%clk 0:00:04]}  Bd2 {[%clk 0:00:01]} 69. Re5 {[%clk 0:00:03]}  Kf6 {[%clk 0:00:01]} 70. Re2 {[%clk 0:00:03]}  Ra1+ {[%clk 0:00:02]} 71. Kg2 {[%clk 0:00:04]}  Bc3 {[%clk 0:00:02]} 72. f3 {[%clk 0:00:04]}  gxf3+ {[%clk 0:00:02]} 73. Kxf3 {[%clk 0:00:05]}  Be5 {[%clk 0:00:03]} 74. Kg4 {[%clk 0:00:05]}  Ra4+ {[%clk 0:00:03]} 75. Kf3 {[%clk 0:00:06]}  Ra3+ {[%clk 0:00:03]} 76. Re3 {[%clk 0:00:06]}  Ra1 {[%clk 0:00:04]} 77. Rd3 {[%clk 0:00:07]}  Kf5 {[%clk 0:00:04]} 78. g4+ {[%clk 0:00:07]}  Kg5 {[%clk 0:00:05]} 79. Rd5 {[%clk 0:00:07]}  Kf6 {[%clk 0:00:05]} 80. Rd3 {[%clk 0:00:07]}  Ra4 {[%clk 0:00:05]} 81. Rd8 {[%clk 0:00:06]}  Rf4+ {[%clk 0:00:06]} 82. Ke3 {[%clk 0:00:06]}  Rxg4 {[%clk 0:00:06]} 83. Rf8+ {[%clk 0:00:07]}  Ke6 {[%clk 0:00:07]} 84. Re8+ {[%clk 0:00:07]}  Kd5 {[%clk 0:00:07]} 85. Rd8+ {[%clk 0:00:08]}  Bd6 {[%clk 0:00:08]} 86. Rf8 {[%clk 0:00:08]}  Bxf8 {[%clk 0:00:07]} 0-1


[Site "https://www.chess.com"]

[Event "Titled Tuesday Blitz December 20 Late 2022"]
[White "Crevatin, Leo"]
[Black "Bjelobrk, Igor"]
[WhiteFideId "1726307"]
[BlackFideId "4300726"]
[WhiteElo "2190"]
[BlackElo "2335"]
[Result "0-1"]
[Round "07"]
[TimeControl "180+1"]
[Date "2022.12.21"]
[WhiteClock "0:00:09"]
[BlackClock "0:01:03"]

1. d4 {[%clk 0:03:00]}  d5 {[%clk 0:02:59]} 2. Bf4 {[%clk 0:03:00]}  Nf6 {[%clk 0:02:59]} 3. e3 {[%clk 0:03:00]}  e6 {[%clk 0:02:58]} 4. Nf3 {[%clk 0:02:59]}  Bd6 {[%clk 0:02:59]} 5. Ne5 {[%clk 0:02:59]}  O-O {[%clk 0:02:58]} 6. Nd2 {[%clk 0:02:59]}  c5 {[%clk 0:02:58]} 7. c3 {[%clk 0:02:59]}  Qc7 {[%clk 0:02:58]} 8. Bd3 {[%clk 0:02:55]}  Nbd7 {[%clk 0:02:59]} 9. Nxd7 {[%clk 0:02:49]}  Bxd7 {[%clk 0:02:59]} 10. Bg3 {[%clk 0:02:47]}  e5 {[%clk 0:02:59]} 11. dxe5 {[%clk 0:02:47]}  Bxe5 {[%clk 0:03:00]} 12. Bxe5 {[%clk 0:02:47]}  Qxe5 {[%clk 0:03:01]} 13. Nf3 {[%clk 0:02:45]}  Qe7 {[%clk 0:02:59]} 14. O-O {[%clk 0:02:45]}  Rfd8 {[%clk 0:02:59]} 15. Be2 {[%clk 0:02:43]}  Bf5 {[%clk 0:02:57]} 16. Qb3 {[%clk 0:02:42]}  Rd6 {[%clk 0:02:57]} 17. Rad1 {[%clk 0:02:39]}  Rad8 {[%clk 0:02:55]} 18. a4 {[%clk 0:02:32]}  Rb6 {[%clk 0:02:53]} 19. Qa3 {[%clk 0:02:31]}  a6 {[%clk 0:02:31]} 20. a5 {[%clk 0:02:25]}  Rc6 {[%clk 0:02:31]} 21. b4 {[%clk 0:02:15]}  Ne4 {[%clk 0:02:27]} 22. b5 {[%clk 0:02:10]}  axb5 {[%clk 0:02:24]} 23. Bxb5 {[%clk 0:02:10]}  Rg6 {[%clk 0:02:24]} 24. g3 {[%clk 0:01:59]}  Bg4 {[%clk 0:02:18]} 25. Be2 {[%clk 0:01:55]}  Qf6 {[%clk 0:02:18]} 26. Kg2 {[%clk 0:01:53]}  Nxc3 {[%clk 0:02:18]} 27. h3 {[%clk 0:01:33]}  Bxf3+ {[%clk 0:02:01]} 28. Bxf3 {[%clk 0:01:32]}  Nxd1 {[%clk 0:02:01]} 29. Rxd1 {[%clk 0:01:31]}  Qc6 {[%clk 0:01:55]} 30. e4 {[%clk 0:01:23]}  d4 {[%clk 0:01:52]} 31. e5 {[%clk 0:01:23]}  Qc7 {[%clk 0:01:51]} 32. Rc1 {[%clk 0:01:17]}  c4 {[%clk 0:01:50]} 33. Qb4 {[%clk 0:01:15]}  c3 {[%clk 0:01:43]} 34. Bxb7 {[%clk 0:01:14]}  Rb8 {[%clk 0:01:35]} 35. Qxd4 {[%clk 0:01:10]}  Qxb7+ {[%clk 0:01:34]} 36. Kg1 {[%clk 0:01:10]}  Rc6 {[%clk 0:01:27]} 37. Rxc3 {[%clk 0:01:05]}  Rxc3 {[%clk 0:01:27]} 38. Qxc3 {[%clk 0:01:05]}  Ra8 {[%clk 0:01:27]} 39. h4 {[%clk 0:00:55]}  Qa6 {[%clk 0:01:26]} 40. Qe3 {[%clk 0:00:53]}  Qxa5 {[%clk 0:01:24]} 41. e6 {[%clk 0:00:52]}  fxe6 {[%clk 0:01:24]} 42. Qxe6+ {[%clk 0:00:52]}  Kh8 {[%clk 0:01:25]} 43. Qf7 {[%clk 0:00:43]}  h6 {[%clk 0:01:24]} 44. Qf3 {[%clk 0:00:40]}  Qa7 {[%clk 0:01:21]} 45. Kh2 {[%clk 0:00:36]}  Rb8 {[%clk 0:01:20]} 46. Qf4 {[%clk 0:00:33]}  Rc8 {[%clk 0:01:20]} 47. Kg2 {[%clk 0:00:31]}  Qc5 {[%clk 0:01:18]} 48. Kg1 {[%clk 0:00:23]}  Rf8 {[%clk 0:01:17]} 49. Qd2 {[%clk 0:00:23]}  Qe5 {[%clk 0:01:09]} 50. Kg2 {[%clk 0:00:21]}  Qe4+ {[%clk 0:01:09]} 51. Kg1 {[%clk 0:00:21]}  Qf3 {[%clk 0:01:09]} 52. Qd4 {[%clk 0:00:14]}  Re8 {[%clk 0:01:08]} 53. Qb4 {[%clk 0:00:09]}  Re2 {[%clk 0:01:05]} 54. Qb8+ {[%clk 0:00:08]}  Kh7 {[%clk 0:01:04]} 55. Qb1+ {[%clk 0:00:09]}  Qe4 {[%clk 0:01:03]} 0-1


[Site "https://www.chess.com"]

[Event "Titled Tuesday Blitz December 20 Late 2022"]
[White "Curtis, John"]
[Black "Grave, Jacob Templen"]
[WhiteFideId "3200256"]
[BlackFideId "1542656"]
[WhiteElo "2203"]
[BlackElo "2126"]
[Result "1-0"]
[Round "07"]
[TimeControl "180+1"]
[Date "2022.12.21"]
[WhiteClock "0:01:23"]
[BlackClock "0:00:19"]

1. e4 {[%clk 0:03:00]}  c6 {[%clk 0:02:55]} 2. d4 {[%clk 0:03:00]}  d5 {[%clk 0:02:55]} 3. exd5 {[%clk 0:03:00]}  cxd5 {[%clk 0:02:56]} 4. c4 {[%clk 0:03:01]}  Nf6 {[%clk 0:02:57]} 5. Nc3 {[%clk 0:03:00]}  Nc6 {[%clk 0:02:57]} 6. Nf3 {[%clk 0:03:00]}  Bg4 {[%clk 0:02:57]} 7. cxd5 {[%clk 0:02:58]}  Nxd5 {[%clk 0:02:58]} 8. Bc4 {[%clk 0:02:58]}  e6 {[%clk 0:02:55]} 9. O-O {[%clk 0:02:51]}  Be7 {[%clk 0:02:52]} 10. Nxd5 {[%clk 0:02:46]}  exd5 {[%clk 0:02:52]} 11. Bb5 {[%clk 0:02:46]}  O-O {[%clk 0:02:51]} 12. Bxc6 {[%clk 0:02:45]}  bxc6 {[%clk 0:02:52]} 13. Be3 {[%clk 0:02:42]}  Rb8 {[%clk 0:02:49]} 14. b3 {[%clk 0:02:42]}  Bd6 {[%clk 0:02:31]} 15. Rc1 {[%clk 0:02:41]}  Qf6 {[%clk 0:02:32]} 16. h3 {[%clk 0:02:38]}  Bh5 {[%clk 0:02:21]} 17. g4 {[%clk 0:02:29]}  Bg6 {[%clk 0:02:21]} 18. Ne5 {[%clk 0:02:29]}  Bxe5 {[%clk 0:02:17]} 19. dxe5 {[%clk 0:02:29]}  Qxe5 {[%clk 0:02:15]} 20. Rxc6 {[%clk 0:02:19]}  Be4 {[%clk 0:02:07]} 21. Qd4 {[%clk 0:02:17]}  Qe8 {[%clk 0:01:38]} 22. Rfc1 {[%clk 0:02:11]}  f5 {[%clk 0:01:38]} 23. Rc7 {[%clk 0:02:05]}  Rf7 {[%clk 0:01:34]} 24. Rxf7 {[%clk 0:01:52]}  Qxf7 {[%clk 0:01:33]} 25. Qxa7 {[%clk 0:01:52]}  Qxa7 {[%clk 0:01:13]} 26. Bxa7 {[%clk 0:01:50]}  Ra8 {[%clk 0:01:14]} 27. Rc7 {[%clk 0:01:50]}  fxg4 {[%clk 0:01:08]} 28. hxg4 {[%clk 0:01:48]}  h6 {[%clk 0:01:03]} 29. a4 {[%clk 0:01:43]}  Bf3 {[%clk 0:00:58]} 30. Bd4 {[%clk 0:01:36]}  g5 {[%clk 0:00:52]} 31. Rg7+ {[%clk 0:01:32]}  Kf8 {[%clk 0:00:52]} 32. Rh7 {[%clk 0:01:31]}  Ra6 {[%clk 0:00:46]} 33. Bg7+ {[%clk 0:01:26]}  Kg8 {[%clk 0:00:35]} 34. Rxh6 {[%clk 0:01:26]}  Ra7 {[%clk 0:00:20]} 35. Bd4 {[%clk 0:01:25]}  Rb7 {[%clk 0:00:20]} 36. Rh8+ {[%clk 0:01:23]}  Kf7 {[%clk 0:00:19]} 37. Rh7+ {[%clk 0:01:23]} 1-0


[Site "https://www.chess.com"]

[Event "Titled Tuesday Blitz December 20 Late 2022"]
[White "Delorme, Axel"]
[Black "Rodriguez Santiago, Jaime"]
[WhiteFideId "632023"]
[BlackFideId "3100898"]
[WhiteElo "2478"]
[BlackElo "2025"]
[Result "1-0"]
[Round "07"]
[TimeControl "180+1"]
[Date "2022.12.21"]
[WhiteClock "0:00:14"]
[BlackClock "0:00:11"]

1. e4 {[%clk 0:03:00]}  c6 {[%clk 0:02:58]} 2. d4 {[%clk 0:03:00]}  d5 {[%clk 0:02:58]} 3. Nc3 {[%clk 0:03:01]}  dxe4 {[%clk 0:02:58]} 4. Nxe4 {[%clk 0:03:02]}  Nf6 {[%clk 0:02:59]} 5. Nxf6+ {[%clk 0:03:03]}  exf6 {[%clk 0:03:00]} 6. Bc4 {[%clk 0:03:03]}  Bd6 {[%clk 0:03:00]} 7. Qe2+ {[%clk 0:03:03]}  Be7 {[%clk 0:02:59]} 8. Nf3 {[%clk 0:03:03]}  O-O {[%clk 0:03:00]} 9. O-O {[%clk 0:03:04]}  Re8 {[%clk 0:03:00]} 10. Re1 {[%clk 0:03:04]}  Nd7 {[%clk 0:02:58]} 11. Bf4 {[%clk 0:03:02]}  Nf8 {[%clk 0:02:57]} 12. c3 {[%clk 0:02:52]}  b5 {[%clk 0:02:54]} 13. Bb3 {[%clk 0:02:51]}  a5 {[%clk 0:02:52]} 14. a4 {[%clk 0:02:48]}  b4 {[%clk 0:02:48]} 15. h3 {[%clk 0:02:46]}  Ba6 {[%clk 0:02:32]} 16. Bc4 {[%clk 0:02:37]}  Bxc4 {[%clk 0:02:16]} 17. Qxc4 {[%clk 0:02:38]}  Qd7 {[%clk 0:02:15]} 18. Nd2 {[%clk 0:02:24]}  Ng6 {[%clk 0:02:12]} 19. Bg3 {[%clk 0:02:23]}  f5 {[%clk 0:02:09]} 20. f3 {[%clk 0:02:11]}  f4 {[%clk 0:02:02]} 21. Bf2 {[%clk 0:02:11]}  Rab8 {[%clk 0:01:50]} 22. Nb3 {[%clk 0:02:06]}  Bh4 {[%clk 0:01:27]} 23. Nxa5 {[%clk 0:01:55]}  Bxf2+ {[%clk 0:01:25]} 24. Kxf2 {[%clk 0:01:56]}  bxc3 {[%clk 0:01:18]} 25. Qxc3 {[%clk 0:01:36]}  Nh4 {[%clk 0:00:51]} 26. Nc4 {[%clk 0:01:24]}  Qd5 {[%clk 0:00:35]} 27. Re5 {[%clk 0:01:03]}  Rxe5 {[%clk 0:00:32]} 28. Nxe5 {[%clk 0:01:04]}  Rb3 {[%clk 0:00:24]} 29. Qd2 {[%clk 0:00:47]}  f6 {[%clk 0:00:20]} 30. Ng4 {[%clk 0:00:20]}  c5 {[%clk 0:00:14]} 31. a5 {[%clk 0:00:19]}  cxd4 {[%clk 0:00:11]} 32. a6 {[%clk 0:00:19]}  Rb8 {[%clk 0:00:09]} 33. a7 {[%clk 0:00:19]}  Ra8 {[%clk 0:00:09]} 34. Qxf4 {[%clk 0:00:19]}  h5 {[%clk 0:00:03]} 35. Nxf6+ {[%clk 0:00:16]}  gxf6 {[%clk 0:00:02]} 36. Qxh4 {[%clk 0:00:17]}  d3 {[%clk 0:00:02]} 37. Qe4 {[%clk 0:00:14]}  Qxe4 {[%clk 0:00:02]} 38. fxe4 {[%clk 0:00:14]}  Kf7 {[%clk 0:00:03]} 39. Ke3 {[%clk 0:00:15]}  Ke6 {[%clk 0:00:03]} 40. Kxd3 {[%clk 0:00:15]}  Ke5 {[%clk 0:00:04]} 41. Ke3 {[%clk 0:00:16]}  Kd6 {[%clk 0:00:04]} 42. b4 {[%clk 0:00:15]}  Kc7 {[%clk 0:00:05]} 43. Kf4 {[%clk 0:00:15]}  Kb7 {[%clk 0:00:06]} 44. Kf5 {[%clk 0:00:15]}  Kb6 {[%clk 0:00:07]} 45. g4 {[%clk 0:00:14]}  Kb5 {[%clk 0:00:08]} 46. gxh5 {[%clk 0:00:14]}  Kb6 {[%clk 0:00:08]} 47. h6 {[%clk 0:00:14]}  Kb5 {[%clk 0:00:09]} 48. h7 {[%clk 0:00:14]}  Kxb4 {[%clk 0:00:10]} 49. h8=Q {[%clk 0:00:14]}  Kb5 {[%clk 0:00:11]} 50. Qxa8 {[%clk 0:00:14]}  Kb6 {[%clk 0:00:11]} 1-0


[Site "https://www.chess.com"]

[Event "Titled Tuesday Blitz December 20 Late 2022"]
[White "Donchenko, Alexander"]
[Black "Denishev, Marat"]
[WhiteFideId "24603295"]
[BlackFideId "24131563"]
[WhiteElo "2581"]
[BlackElo "2194"]
[Result "1-0"]
[Round "07"]
[TimeControl "180+1"]
[Date "2022.12.20"]
[WhiteClock "0:01:03"]
[BlackClock "0:00:07"]

1. d4 {[%clk 0:03:00]}  Nf6 {[%clk 0:02:59]} 2. c4 {[%clk 0:03:01]}  c5 {[%clk 0:02:57]} 3. Nf3 {[%clk 0:03:01]}  e6 {[%clk 0:02:56]} 4. g3 {[%clk 0:03:00]}  b6 {[%clk 0:02:51]} 5. Bg2 {[%clk 0:03:00]}  Bb7 {[%clk 0:02:51]} 6. d5 {[%clk 0:03:00]}  exd5 {[%clk 0:02:51]} 7. Ng5 {[%clk 0:03:01]}  h6 {[%clk 0:02:47]} 8. Nh3 {[%clk 0:03:00]}  Ba6 {[%clk 0:02:31]} 9. cxd5 {[%clk 0:02:56]}  d6 {[%clk 0:02:31]} 10. O-O {[%clk 0:02:54]}  Be7 {[%clk 0:02:31]} 11. Re1 {[%clk 0:02:52]}  O-O {[%clk 0:02:29]} 12. e4 {[%clk 0:02:53]}  Nbd7 {[%clk 0:02:30]} 13. Nc3 {[%clk 0:02:51]}  b5 {[%clk 0:02:29]} 14. Bf1 {[%clk 0:02:48]}  Qb6 {[%clk 0:02:28]} 15. a4 {[%clk 0:02:41]}  b4 {[%clk 0:02:25]} 16. Nb5 {[%clk 0:02:41]}  Rfe8 {[%clk 0:02:11]} 17. Nc7 {[%clk 0:02:30]}  Qxc7 {[%clk 0:01:53]} 18. Bxa6 {[%clk 0:02:30]}  Bf8 {[%clk 0:01:38]} 19. f3 {[%clk 0:02:13]}  c4 {[%clk 0:01:33]} 20. Qd4 {[%clk 0:02:11]}  Ne5 {[%clk 0:01:29]} 21. Kg2 {[%clk 0:02:08]}  g6 {[%clk 0:01:14]} 22. Bd2 {[%clk 0:02:03]}  Bg7 {[%clk 0:01:11]} 23. Nf2 {[%clk 0:01:36]}  Rab8 {[%clk 0:00:37]} 24. Rac1 {[%clk 0:01:24]}  c3 {[%clk 0:00:29]} 25. bxc3 {[%clk 0:01:22]}  b3 {[%clk 0:00:29]} 26. Rb1 {[%clk 0:01:18]}  Nfd7 {[%clk 0:00:16]} 27. Qe3 {[%clk 0:01:16]}  Nc5 {[%clk 0:00:15]} 28. Bb5 {[%clk 0:01:15]}  Rf8 {[%clk 0:00:15]} 29. f4 {[%clk 0:01:13]}  Ned7 {[%clk 0:00:13]} 30. Nd3 {[%clk 0:01:06]}  Nxd3 {[%clk 0:00:10]} 31. Qxd3 {[%clk 0:01:07]}  Nc5 {[%clk 0:00:11]} 32. Qc4 {[%clk 0:01:07]}  Qa5 {[%clk 0:00:09]} 33. e5 {[%clk 0:01:06]}  a6 {[%clk 0:00:09]} 34. Bc6 {[%clk 0:01:06]}  Qc7 {[%clk 0:00:07]} 35. Be3 {[%clk 0:01:03]} 1-0


[Site "https://www.chess.com"]

[Event "Titled Tuesday Blitz December 20 Late 2022"]
[White "Dzierzak, Radoslaw"]
[Black "Myers, Dominique"]
[WhiteFideId "1161407"]
[BlackFideId "2041715"]
[WhiteElo "2111"]
[BlackElo "1953"]
[Result "1-0"]
[Round "07"]
[TimeControl "180+1"]
[Date "2022.12.21"]
[WhiteClock "0:00:39"]
[BlackClock "0:01:41"]

1. e4 {[%clk 0:03:00]}  e5 {[%clk 0:02:59]} 2. Nf3 {[%clk 0:03:01]}  Qe7 {[%clk 0:03:00]} 3. Nc3 {[%clk 0:02:59]}  c6 {[%clk 0:03:00]} 4. d4 {[%clk 0:02:58]}  d6 {[%clk 0:03:01]} 5. dxe5 {[%clk 0:02:57]}  dxe5 {[%clk 0:03:02]} 6. Bc4 {[%clk 0:02:57]}  h6 {[%clk 0:03:01]} 7. O-O {[%clk 0:02:51]}  Bg4 {[%clk 0:03:01]} 8. h3 {[%clk 0:02:52]}  Bh5 {[%clk 0:03:01]} 9. Be3 {[%clk 0:02:51]}  Nd7 {[%clk 0:03:01]} 10. a4 {[%clk 0:02:42]}  g5 {[%clk 0:03:00]} 11. a5 {[%clk 0:02:33]}  Bg7 {[%clk 0:02:59]} 12. a6 {[%clk 0:02:34]}  b5 {[%clk 0:02:59]} 13. Nxb5 {[%clk 0:02:18]}  cxb5 {[%clk 0:02:59]} 14. Bxb5 {[%clk 0:02:19]}  Nf6 {[%clk 0:02:59]} 15. g4 {[%clk 0:02:14]}  Bg6 {[%clk 0:02:56]} 16. Bc6 {[%clk 0:02:02]}  Bxe4 {[%clk 0:02:55]} 17. Bxe4 {[%clk 0:01:55]}  Nxe4 {[%clk 0:02:56]} 18. Qd5 {[%clk 0:01:55]}  O-O {[%clk 0:02:54]} 19. Qxe4 {[%clk 0:01:55]}  Rfe8 {[%clk 0:02:41]} 20. Ra5 {[%clk 0:01:39]}  Nf8 {[%clk 0:02:39]} 21. Bc5 {[%clk 0:01:36]}  Qc7 {[%clk 0:02:36]} 22. Rb5 {[%clk 0:01:20]}  Ne6 {[%clk 0:02:31]} 23. b4 {[%clk 0:01:19]}  Nf4 {[%clk 0:02:29]} 24. Kh2 {[%clk 0:01:19]}  Qd7 {[%clk 0:02:22]} 25. Rb7 {[%clk 0:01:13]}  Qe6 {[%clk 0:02:15]} 26. Rd1 {[%clk 0:01:01]}  Qxa6 {[%clk 0:02:13]} 27. c4 {[%clk 0:00:53]}  Rad8 {[%clk 0:02:03]} 28. Rdd7 {[%clk 0:00:52]}  Rxd7 {[%clk 0:02:02]} 29. Rxd7 {[%clk 0:00:53]}  Qa1 {[%clk 0:01:58]} 30. Qf5 {[%clk 0:00:51]}  e4 {[%clk 0:01:53]} 31. Qxf7+ {[%clk 0:00:48]}  Kh7 {[%clk 0:01:52]} 32. Bd4 {[%clk 0:00:41]}  Qxd4 {[%clk 0:01:43]} 33. Rxd4 {[%clk 0:00:40]}  exf3 {[%clk 0:01:43]} 34. Qxe8 {[%clk 0:00:38]}  Bxd4 {[%clk 0:01:41]} 35. Qe4+ {[%clk 0:00:39]} 1-0


[Site "https://www.chess.com"]

[Event "Titled Tuesday Blitz December 20 Late 2022"]
[White "Fernandez De La Vara, Arnaldo"]
[Black "Mikhalsky, Vladimir"]
[WhiteFideId "3518388"]
[BlackFideId "14144352"]
[WhiteElo "2387"]
[BlackElo "2272"]
[Result "1-0"]
[Round "07"]
[TimeControl "180+1"]
[Date "2022.12.21"]
[WhiteClock "0:00:08"]
[BlackClock "0:00:30"]

1. Nf3 {[%clk 0:01:08]}  c5 {[%clk 0:02:58]} 2. g3 {[%clk 0:01:09]}  d5 {[%clk 0:02:55]} 3. Bg2 {[%clk 0:01:08]}  f6 {[%clk 0:02:55]} 4. d4 {[%clk 0:01:08]}  cxd4 {[%clk 0:02:55]} 5. Nxd4 {[%clk 0:01:09]}  e5 {[%clk 0:02:55]} 6. Nb3 {[%clk 0:01:09]}  Be6 {[%clk 0:02:52]} 7. c4 {[%clk 0:01:09]}  Ne7 {[%clk 0:02:42]} 8. Nc3 {[%clk 0:01:08]}  e4 {[%clk 0:02:03]} 9. cxd5 {[%clk 0:01:04]}  Nxd5 {[%clk 0:02:03]} 10. Nxe4 {[%clk 0:00:59]}  Bb4+ {[%clk 0:01:57]} 11. Bd2 {[%clk 0:00:59]}  O-O {[%clk 0:01:46]} 12. O-O {[%clk 0:00:53]}  Nc6 {[%clk 0:01:45]} 13. Rc1 {[%clk 0:00:48]}  Bxd2 {[%clk 0:01:38]} 14. Qxd2 {[%clk 0:00:49]}  Ndb4 {[%clk 0:01:37]} 15. Nec5 {[%clk 0:00:38]}  Qxd2 {[%clk 0:01:17]} 16. Nxd2 {[%clk 0:00:39]}  Bxa2 {[%clk 0:01:15]} 17. Nxb7 {[%clk 0:00:39]}  Nd4 {[%clk 0:01:13]} 18. Kh1 {[%clk 0:00:25]}  Nxe2 {[%clk 0:01:11]} 19. Rc7 {[%clk 0:00:25]}  Rf7 {[%clk 0:01:09]} 20. Rxf7 {[%clk 0:00:23]}  Bxf7 {[%clk 0:01:08]} 21. Nd6 {[%clk 0:00:24]}  Rd8 {[%clk 0:01:07]} 22. N2c4 {[%clk 0:00:19]}  Nd3 {[%clk 0:01:02]} 23. Nxf7 {[%clk 0:00:16]}  Kxf7 {[%clk 0:01:02]} 24. Bf3 {[%clk 0:00:08]}  Nd4 {[%clk 0:00:51]} 25. Be4 {[%clk 0:00:08]}  Nc5 {[%clk 0:00:46]} 26. Bb1 {[%clk 0:00:09]}  Nf3 {[%clk 0:00:43]} 27. Kg2 {[%clk 0:00:08]}  Nd2 {[%clk 0:00:42]} 28. Rd1 {[%clk 0:00:09]}  Ncb3 {[%clk 0:00:38]} 29. Ba2 {[%clk 0:00:06]}  Rd4 {[%clk 0:00:38]} 30. Nxd2 {[%clk 0:00:06]}  Kg6 {[%clk 0:00:31]} 31. Bxb3 {[%clk 0:00:06]}  Rb4 {[%clk 0:00:31]} 32. Bc2+ {[%clk 0:00:07]}  Kh6 {[%clk 0:00:30]} 33. b3 {[%clk 0:00:07]}  Rb5 {[%clk 0:00:30]} 34. Nc4 {[%clk 0:00:08]}  Rc5 {[%clk 0:00:30]} 35. Rd7 {[%clk 0:00:08]} 1-0


[Site "https://www.chess.com"]